[Event "44th Chess Olympiad Women 2022"]
[Site "Chennai"]
[Date "2022.07.30"]
[Round "2.47"]
[White "Benson, Maud"]
[Black "Bwalya Mulwale, Lubuuto"]
[Result "0-1"]
[ECO "D35"]
[WhiteElo "1334"]
[BlackElo "1751"]
[Annotator "NA COMBH"]
[PlyCount "130"]
[EventDate "2022.07.29"]
[EventType "team-tourn"]
[EventCountry "IND"]
[SourceTitle "playchess.com"]
[Source "ChessBase"]
[SourceQuality "1"]
[WhiteTeam "Ghana"]
[BlackTeam "Zambia"]
[WhiteTeamCountry "GHA"]
[BlackTeamCountry "ZAM"]
[TimeControl "40/5400+30:1800+30"]

1. d4 {[%emt 0:00:06]} d5 {[%emt 0:00:13]} 2. c4 {[%emt 0:00:20]} e6 {[%emt 0:00:10]} 3. Nc3 {[%emt 0:00:16]} Nf6 {[%emt 0:00:24]} 4. Bg5 {[%emt 0:00:13]} Nbd7 {[%emt 0:00:20]} 5. e3 {[%emt 0:00:50]} c6 {[%emt 0:00:14]} 6. Bd3 {[%emt 0:05:30]} Qa5 {[%emt 0:01:25]} 7. cxd5 {[%emt 0:03:32]} exd5 {[%emt 0:00:21]} 8. Qc2 {[%emt 0:01:18]} Bb4 {[%emt 0:04:29]} 9. Nge2 {[%emt 0:01:28]} O-O {[%emt 0:02:38]} 10. O-O {[%emt 0:00:56]} Re8 {[%emt 0:05:08]} 11. a3 {[%emt 0:01:24]} Bd6 {[%emt 0:01:21]} 12. b4 {[%emt 0:01:26]} Qc7 {[%emt 0:00:35]} 13. Bf4 {[%emt 0:02:30]} Nf8 {[%emt 0:01:05]} 14. b5 {[%emt 0:03:18]} Bxf4 {[%emt 0:05:51]} 15. Nxf4 {[%emt 0:01:12]} Qd6 {[%emt 0:02:10]} 16. bxc6 {[%emt 0:03:16]} bxc6 {[%emt 0:00:42]} 17. Na4 {[%emt 0:02:04]} Ne6 {[%emt 0:02:08]} 18. Nxe6 {[%emt 0:01:53]} fxe6 {[%emt 0:00:22]} 19. Rfc1 {[%emt 0:01:06]} Bd7 {[%emt 0:01:35]} 20. Nc5 {[%emt 0:01:00]} Rec8 {[%emt 0:01:56]} 21. Rab1 {[%emt 0:02:11]} Be8 {[%emt 0:01:25]} 22. Rb7 {[%emt 0:09:04]} e5 {[%emt 0:04:07]} 23. dxe5 {[%emt 0:05:22]} Qxe5 {[%emt 0:00:19]} 24. Bf5 {[%emt 0:04:36]} Rcb8 {[%emt 0:00:44]} 25. Be6+ {[%emt 0:04:59]} Kh8 {[%emt 0:01:33]} 26. Qf5 {[%emt 0:06:19]} Qd6 {[%emt 0:03:25]} 27. Qb1 {[%emt 0:16:46]} Bg6 {[%emt 0:05:04]} 28. Qb2 {[%emt 0:03:24]} a5 {[%emt 0:04:44]} 29. a4 {[%emt 0:03:14]} Rxb7 {[%emt 0:10:08]} 30. Qxb7 {[%emt 0:00:54]} Rb8 {[%emt 0:00:25]} 31. Qa7 {[%emt 0:00:50]} Ne4 {[%emt 0:12:48]} 32. Nxe4 {[%emt 0:10:45]} dxe4 {[%emt 0:00:11]} 33. g3 {[%emt 0:01:43]} Rd8 {[%emt 0:02:14]} 34. Qxa5 {[%emt 0:02:17]} Rf8 {[%emt 0:02:41]} 35. Bg4 {[%emt 0:00:49]} Qf6 {[%emt 0:01:54]} 36. Qd2 {[%emt 0:00:54]} h5 {[%emt 0:01:48]} 37. Bh3 {[%emt 0:00:35]} h4 {[%emt 0:00:05]} 38. a5 {[%emt 0:00:35]} hxg3 {[%emt 0:03:18]} 39. fxg3 {[%emt 0:00:31]} Rd8 {[%emt 0:00:58]} 40. Qc3 {[%emt 0:00:31]} Qg5 {[%emt 0:01:15]} 41. Qc5 {[%emt 0:06:53]} Rd5 {[%emt 0:07:04]} 42. Qf8+ {[%emt 0:01:00]} Kh7 {[%emt 0:00:03]} 43. Qf4 {[%emt 0:00:46]} Qd8 {[%emt 0:02:14]} 44. Rxc6 {[%emt 0:02:47]} Qxa5 {[%emt 0:02:21]} 45. Rc1 {[%emt 0:09:06]} Qd2 {[%emt 0:02:01]} 46. Rf1 {[%emt 0:01:36]} Rh5 {[%emt 0:02:59]} 47. Bg2 {[%emt 0:02:08]} Rf5 {[%emt 0:04:29]} 48. Qh4+ {[%emt 0:01:31]} Kg8 {[%emt 0:03:44]} 49. Rxf5 {[%emt 0:01:27]} Bxf5 {[%emt 0:00:05]} 50. Qf4 {[%emt 0:02:08]} Qe1+ {[%emt 0:02:27]} 51. Bf1 {[%emt 0:00:47]} Bh3 {[%emt 0:00:48]} 52. g4 {[%emt 0:01:49]} Bxf1 {[%emt 0:00:32]} 53. Qxf1 {[%emt 0:00:39]} Qxe3+ {[%emt 0:00:07]} 54. Qf2 {[%emt 0:01:22]} Qd3 {[%emt 0:01:54]} 55. Qa2+ {[%emt 0:01:07]} Kh7 {[%emt 0:00:00]} 56. Qg2 {[%emt 0:02:35]} e3 {[%emt 0:01:16]} 57. Qh3+ {[%emt 0:00:51]} Kg8 {[%emt 0:00:05]} 58. Qf3 {[%emt 0:00:25]} Qd4 {[%emt 0:03:40]} 59. Qe2 {[%emt 0:00:30]} Qf4 {[%emt 0:01:09]} 60. Kg2 {[%emt 0:00:30]} Qe4+ {[%emt 0:00:27]} 61. Kg3 {[%emt 0:00:30]} Kh7 {[%emt 0:01:41]} 62. h3 {[%emt 0:00:35]} Kh6 {[%emt 0:05:19]} 63. h4 {[%emt 0:00:23]} Kg6 {[%emt 0:02:36]} 64. Qf3 {[%emt 0:00:36]} Qe5+ {[%emt 0:00:37]} 65. Qf4 {[%emt 0:00:20]} Qxf4+ {[%emt 0:00:54]} 0-1

[Event "44th Chess Olympiad Women 2022"]
[Site "Chennai"]
[Date "2022.07.30"]
[Round "2.47"]
[White "Appau Abena Tiwaa"]
[Black "Phiri Bertha"]
[Result "0-1"]
[ECO "D02"]
[WhiteElo "1103"]
[BlackElo "1606"]
[Annotator "NA COMBH"]
[PlyCount "88"]
[EventDate "2022.07.29"]
[EventType "team-tourn"]
[EventCountry "IND"]
[SourceTitle "playchess.com"]
[Source "ChessBase"]
[SourceQuality "1"]
[WhiteTeam "Ghana"]
[BlackTeam "Zambia"]
[WhiteTeamCountry "GHA"]
[BlackTeamCountry "ZAM"]
[TimeControl "40/5400+30:1800+30"]

1. d4 {[%emt 0:00:09]} d5 {[%emt 0:00:20]} 2. Nf3 {[%emt 0:00:44]} Nf6 {[%emt 0:00:22]} 3. c3 {[%emt 0:01:24]} Bf5 {[%emt 0:02:30]} 4. Bf4 {[%emt 0:01:00]} e6 {[%emt 0:02:03]} 5. e3 {[%emt 0:01:44]} Bd6 {[%emt 0:03:00]} 6. Bg3 {[%emt 0:01:12]} O-O {[%emt 0:01:50]} 7. Nbd2 {[%emt 0:01:46]} b6 {[%emt 0:03:49]} 8. Be2 {[%emt 0:05:23]} c5 {[%emt 0:05:14]} 9. dxc5 {[%emt 0:03:55]} bxc5 {[%emt 0:01:20]} 10. Ne5 {[%emt 0:07:27]} Qc7 {[%emt 0:00:39]} 11. Ndf3 {[%emt 0:01:56]} Ne4 {[%emt 0:01:23]} 12. Nd3 {[%emt 0:05:05]} Nd7 {[%emt 0:02:59]} 13. Bxd6 {[%emt 0:01:37]} Qxd6 {[%emt 0:00:28]} 14. O-O {[%emt 0:03:43]} h6 {[%emt 0:02:16]} 15. Nd2 {[%emt 0:02:50]} Rab8 {[%emt 0:05:06]} 16. b3 {[%emt 0:06:00]} Nxc3 {[%emt 0:01:47]} 17. Qe1 {[%emt 0:01:51]} Rfc8 {[%emt 0:06:56]} 18. Nf3 {[%emt 0:03:32]} Nxe2+ {[%emt 0:04:17]} 19. Qxe2 {[%emt 0:00:40]} Bxd3 {[%emt 0:02:38]} 20. Qxd3 {[%emt 0:00:55]} Ne5 {[%emt 0:00:37]} 21. Nxe5 {[%emt 0:00:30]} Qxe5 {[%emt 0:00:09]} 22. f4 {[%emt 0:05:08]} Qd6 {[%emt 0:03:08]} 23. Rad1 {[%emt 0:03:51]} Rd8 {[%emt 0:09:11]} 24. Rf3 {[%emt 0:04:08]} Rb7 {[%emt 0:02:46]} 25. Rg3 {[%emt 0:02:45]} d4 {[%emt 0:10:05]} 26. Qe2 {[%emt 0:04:30]} Qe7 {[%emt 0:04:07]} 27. Qh5 {[%emt 0:01:54]} Kh8 {[%emt 0:03:58]} 28. exd4 {[%emt 0:03:56]} cxd4 {[%emt 0:00:02]} 29. Qe5 {[%emt 0:00:46]} f6 {[%emt 0:00:58]} 30. Qh5 {[%emt 0:03:40]} Rd5 {[%emt 0:04:18]} 31. Qe2 {[%emt 0:03:40]} Rbd7 {[%emt 0:03:06]} 32. Rdd3 {[%emt 0:03:34]} e5 {[%emt 0:01:06]} 33. f5 {[%emt 0:01:26]} e4 {[%emt 0:01:24]} 34. Rd1 {[%emt 0:01:17]} Rxf5 {[%emt 0:01:28]} 35. Qa6 {[%emt 0:03:06]} Re5 {[%emt 0:02:06]} 36. Rc1 {[%emt 0:01:23]} Rc7 {[%emt 0:01:49]} 37. Rxc7 {[%emt 0:01:31]} Qxc7 {[%emt 0:00:10]} 38. h3 {[%emt 0:00:47]} Ra5 {[%emt 0:02:05]} 39. Qe6 {[%emt 0:00:34]} Qxg3 {[%emt 0:01:32]} 40. Qe8+ {[%emt 0:00:28]} Kh7 {[%emt 0:00:15]} 41. Qxe4+ {[%emt 0:30:13]} f5 {[%emt 0:31:36]} 42. Qxd4 {[%emt 0:00:44]} Rxa2 {[%emt 0:00:40]} 43. Kf1 {[%emt 0:04:14]} Qxg2+ {[%emt 0:00:19]} 44. Ke1 {[%emt 0:00:32]} Qe2# {[%emt 0:00:14]} 0-1

[Event "44th Chess Olympiad Women 2022"]
[Site "Chennai"]
[Date "2022.07.30"]
[Round "2.48"]
[White "Banda Natalie Katlo"]
[Black "Jacobs, Annelaine"]
[Result "1/2-1/2"]
[ECO "A48"]
[WhiteElo "1688"]
[BlackElo "1612"]
[Annotator "NA COMBH"]
[PlyCount "118"]
[EventDate "2022.07.29"]
[EventType "team-tourn"]
[EventCountry "IND"]
[SourceTitle "playchess.com"]
[Source "ChessBase"]
[SourceQuality "1"]
[WhiteTeam "Botswana"]
[BlackTeam "ARU"]
[WhiteTeamCountry "BOT"]
[TimeControl "40/5400+30:1800+30"]

1. d4 {[%emt 0:00:15]} g6 {[%emt 0:00:08]} 2. Nf3 {[%emt 0:00:07]} Bg7 {[%emt 0:00:17]} 3. c3 {[%emt 0:01:21]} Nf6 {[%emt 0:00:28]} 4. Bg5 {[%emt 0:00:19]} d6 {[%emt 0:01:00]} 5. Bxf6 {[%emt 0:00:22]} Bxf6 {[%emt 0:02:01]} 6. Nbd2 {[%emt 0:00:16]} O-O {[%emt 0:02:01]} 7. Ne4 {[%emt 0:01:57]} Bg7 {[%emt 0:03:21]} 8. h4 {[%emt 0:02:47]} Nc6 {[%emt 0:21:25]} 9. h5 {[%emt 0:02:14]} e5 {[%emt 0:13:50]} 10. hxg6 {[%emt 0:00:38]} hxg6 {[%emt 0:02:25]} 11. e3 {[%emt 0:08:26]} d5 {[%emt 0:12:06]} 12. Ng3 {[%emt 0:02:16]} e4 {[%emt 0:09:04]} 13. Nd2 {[%emt 0:00:19]} Ne7 {[%emt 0:11:54]} 14. Be2 {[%emt 0:04:30]} Nf5 {[%emt 0:04:10]} 15. Nxf5 {[%emt 0:02:14]} Bxf5 {[%emt 0:00:06]} 16. Bg4 {[%emt 0:01:14]} Qg5 {[%emt 0:01:25]} 17. Bxf5 {[%emt 0:00:40]} Qxf5 {[%emt 0:03:04]} 18. Rh4 {[%emt 0:00:51]} Qg5 {[%emt 0:02:01]} 19. Qg4 {[%emt 0:01:36]} Qxg4 {[%emt 0:00:49]} 20. Rxg4 {[%emt 0:00:04]} Bh6 {[%emt 0:01:08]} 21. O-O-O {[%emt 0:00:45]} Kg7 {[%emt 0:00:46]} 22. Rh4 {[%emt 0:02:04]} Rh8 {[%emt 0:00:27]} 23. Rdh1 {[%emt 0:00:23]} Bg5 {[%emt 0:00:32]} 24. Rxh8 {[%emt 0:00:12]} Rxh8 {[%emt 0:00:04]} 25. Rxh8 {[%emt 0:00:03]} Kxh8 {[%emt 0:00:12]} 26. Nb3 {[%emt 0:00:06]} b6 {[%emt 0:00:31]} 27. a4 {[%emt 0:00:32]} f5 {[%emt 0:00:08]} 28. g3 {[%emt 0:00:17]} Bh6 {[%emt 0:00:37]} 29. c4 {[%emt 0:01:23]} dxc4 {[%emt 0:05:35]} 30. Nd2 {[%emt 0:00:09]} Bf8 {[%emt 0:00:10]} 31. Nxc4 {[%emt 0:00:31]} Bd6 {[%emt 0:00:47]} 32. Nxd6 {[%emt 0:00:27]} cxd6 {[%emt 0:00:05]} 33. Kd2 {[%emt 0:00:15]} d5 {[%emt 0:00:43]} 34. a5 {[%emt 0:01:36]} bxa5 {[%emt 0:01:05]} 35. Kc3 {[%emt 0:00:07]} Kg7 {[%emt 0:01:17]} 36. Kb3 {[%emt 0:00:07]} Kf6 {[%emt 0:00:49]} 37. Ka4 {[%emt 0:00:08]} Kg5 {[%emt 0:01:00]} 38. Kxa5 {[%emt 0:00:12]} Kg4 {[%emt 0:00:25]} 39. Ka6 {[%emt 0:00:23]} Kf3 {[%emt 0:00:04]} 40. Kxa7 {[%emt 0:00:13]} Kxf2 {[%emt 0:00:05]} 41. b4 {[%emt 0:30:08]} Kxe3 {[%emt 0:31:01]} 42. b5 {[%emt 0:00:12]} Kf2 {[%emt 0:00:00]} 43. b6 {[%emt 0:00:00]} e3 {[%emt 0:00:00]} 44. b7 {[%emt 0:00:00]} e2 {[%emt 0:00:00]} 45. b8=Q {[%emt 0:00:00]} e1=Q {[%emt 0:00:00]} 46. Qf4+ {[%emt 0:00:00]} Kg2 {[%emt 0:00:00]} 47. Qe5 {[%emt 0:00:00]} Qxg3 {[%emt 0:00:00]} 48. Qxd5+ {[%emt 0:00:00]} Kh3 {[%emt 0:00:00]} 49. Qd7 {[%emt 0:00:00]} Kg4 {[%emt 0:01:06]} 50. d5 {[%emt 0:00:00]} g5 {[%emt 0:01:37]} 51. d6 {[%emt 0:00:00]} Qe3+ {[%emt 0:01:18]} 52. Kb7 {[%emt 0:00:00]} Qb3+ {[%emt 0:00:36]} 53. Kc8 {[%emt 0:00:00]} Qc3+ {[%emt 0:00:47]} 54. Kb7 {[%emt 0:00:00]} Qb4+ {[%emt 0:00:25]} 55. Kc7 {[%emt 0:00:00]} Qa5+ {[%emt 0:00:27]} 56. Kb7 {[%emt 0:00:00]} Qb4+ {[%emt 0:00:31]} 57. Kc8 {[%emt 0:00:00]} Qc3+ {[%emt 0:00:39]} 58. Qc7 {[%emt 0:00:00]} Qh8+ {[%emt 0:00:18]} 59. Kb7 {[%emt 0:00:00]} Qb2+ {[%emt 0:00:31]} 1/2-1/2

[Event "44th Chess Olympiad Women 2022"]
[Site "Chennai"]
[Date "2022.07.30"]
[Round "2.48"]
[White "Moshoboro Arona"]
[Black "Cabral, Sylvi"]
[Result "1-0"]
[ECO "D02"]
[WhiteElo "1611"]
[BlackElo "1100"]
[Annotator "NA COMBH"]
[PlyCount "55"]
[EventDate "2022.07.29"]
[EventType "team-tourn"]
[EventCountry "IND"]
[SourceTitle "playchess.com"]
[Source "ChessBase"]
[SourceQuality "1"]
[WhiteTeam "Botswana"]
[BlackTeam "ARU"]
[WhiteTeamCountry "BOT"]
[TimeControl "40/5400+30:1800+30"]

1. d4 {[%emt 0:00:03]} d5 {[%emt 0:00:09]} 2. Nf3 {[%emt 0:00:07]} c5 {[%emt 0:01:50]} 3. b3 {[%emt 0:00:42]} cxd4 {[%emt 0:05:33]} 4. Nxd4 {[%emt 0:02:05]} Nf6 {[%emt 0:05:36]} 5. Bb2 {[%emt 0:05:07]} e6 {[%emt 0:11:05]} 6. a3 {[%emt 0:10:45]} Bd7 {[%emt 0:03:40]} 7. e3 {[%emt 0:02:34]} Bd6 {[%emt 0:11:20]} 8. Nd2 {[%emt 0:01:20]} Nc6 {[%emt 0:01:29]} 9. Bd3 {[%emt 0:09:59]} e5 {[%emt 0:08:05]} 10. Nb5 {[%emt 0:09:47]} a6 {[%emt 0:07:37]} 11. Nxd6+ {[%emt 0:00:15]} Kf8 {[%emt 0:04:07]} 12. Nxb7 {[%emt 0:09:17]} Qb6 {[%emt 0:03:19]} 13. Nd6 {[%emt 0:00:18]} g6 {[%emt 0:08:30]} 14. a4 {[%emt 0:14:09]} a5 {[%emt 0:02:49]} 15. Bb5 {[%emt 0:05:05]} Bg4 {[%emt 0:07:25]} 16. Qb1 {[%emt 0:03:47]} Nd7 {[%emt 0:01:12]} 17. Bxc6 {[%emt 0:03:22]} Qxc6 {[%emt 0:00:18]} 18. Nb5 {[%emt 0:03:57]} d4 {[%emt 0:04:20]} 19. e4 {[%emt 0:01:13]} Nf6 {[%emt 0:01:22]} 20. f3 {[%emt 0:00:19]} Be6 {[%emt 0:00:23]} 21. Ba3+ {[%emt 0:00:31]} Kg7 {[%emt 0:00:24]} 22. Nd6 {[%emt 0:03:25]} Qc3 {[%emt 0:02:26]} 23. Qd1 {[%emt 0:02:22]} Qe3+ {[%emt 0:01:04]} 24. Qe2 {[%emt 0:00:09]} Qc3 {[%emt 0:00:18]} 25. O-O {[%emt 0:00:14]} Nh5 {[%emt 0:02:02]} 26. N2c4 {[%emt 0:02:25]} Nf4 {[%emt 0:01:23]} 27. Qf2 {[%emt 0:00:54]} Bh3 {[%emt 0:01:30]} 28. Nb5 {[%emt 0:00:30]} 1-0

[Event "44th Chess Olympiad Women 2022"]
[Site "Chennai"]
[Date "2022.07.30"]
[Round "2.48"]
[White "Sagastegui, Thamara"]
[Black "Otisitswe Ruth"]
[Result "0-1"]
[ECO "C42"]
[WhiteElo "1362"]
[BlackElo "1552"]
[Annotator "NA RC COMBH"]
[PlyCount "99"]
[EventDate "2022.07.29"]
[EventType "team-tourn"]
[EventCountry "IND"]
[SourceTitle "playchess.com"]
[Source "ChessBase"]
[SourceQuality "1"]
[WhiteTeam "ARU"]
[BlackTeam "Botswana"]
[BlackTeamCountry "BOT"]
[TimeControl "40/5400+30:1800+30"]

1. e4 {[%emt 0:00:01]} e5 {[%emt 0:00:19]} 2. Nf3 {[%emt 0:00:05]} d6 {[%emt 0:00:04]} 3. h3 {[%emt 0:00:07]} Be7 {[%emt 0:00:05]} 4. Nc3 {[%emt 0:00:04]} Nf6 {[%emt 0:00:09]} 5. d4 {[%emt 0:00:50]} Nbd7 {[%emt 0:00:05]} 6. d5 {[%emt 0:01:46]} Nc5 {[%emt 0:01:00]} 7. Bd3 {[%emt 0:00:26]} Bd7 {[%emt 0:03:29]} 8. Qe2 {[%emt 0:01:40]} b6 {[%emt 0:06:15]} 9. b4 {[%emt 0:01:51]} Nxd3+ {[%emt 0:00:17]} 10. Qxd3 {[%emt 0:00:07]} c6 {[%emt 0:02:12]} 11. a4 {[%emt 0:09:28]} cxd5 {[%emt 0:03:58]} 12. exd5 {[%emt 0:03:36]} Qc7 {[%emt 0:11:29]} 13. O-O {[%emt 0:07:41]} Rc8 {[%emt 0:02:03]} 14. Bd2 {[%emt 0:03:01]} O-O {[%emt 0:01:37]} 15. Rfc1 {[%emt 0:01:00]} Qb7 {[%emt 0:06:02]} 16. Bg5 {[%emt 0:05:30]} h6 {[%emt 0:02:22]} 17. Bxf6 {[%emt 0:00:07]} Bxf6 {[%emt 0:00:04]} 18. Ne4 {[%emt 0:00:03]} Be7 {[%emt 0:00:49]} 19. Ned2 {[%emt 0:04:09]} f5 {[%emt 0:01:09]} 20. Qb3 {[%emt 0:03:12]} e4 {[%emt 0:01:02]} 21. Nd4 {[%emt 0:22:45]} Bf6 {[%emt 0:01:23]} 22. c3 {[%emt 0:01:34]} Rfe8 {[%emt 0:11:33]} 23. Re1 {[%emt 0:07:30]} Qc7 {[%emt 0:04:26]} 24. Ra3 {[%emt 0:01:04]} Bxd4 {[%emt 0:01:16]} 25. cxd4 {[%emt 0:00:05]} Qc2 {[%emt 0:00:59]} 26. Qxc2 {[%emt 0:02:27]} Rxc2 {[%emt 0:00:02]} 27. Nb3 {[%emt 0:15:45]} a6 {[%emt 0:05:01]} 28. g3 {[%emt 0:07:43]} Rc4 {[%emt 0:02:17]} 29. Rc1 {[%emt 0:00:42]} Rxb4 {[%emt 0:01:19]} 30. Rca1 {[%emt 0:00:33]} a5 {[%emt 0:00:45]} 31. Nd2 {[%emt 0:00:31]} Rxd4 {[%emt 0:00:24]} 32. R1a2 {[%emt 0:00:31]} Rc8 {[%emt 0:01:38]} 33. Rb3 {[%emt 0:00:31]} Rb8 {[%emt 0:01:43]} 34. f3 {[%emt 0:00:33]} Bxa4 {[%emt 0:02:21]} 35. Re3 {[%emt 0:00:29]} Bd7 {[%emt 0:02:53]} 36. h4 {[%emt 0:00:34]} exf3 {[%emt 0:02:00]} 37. Rxf3 {[%emt 0:00:18]} a4 {[%emt 0:00:53]} 38. Nb1 {[%emt 0:00:39]} Rxd5 {[%emt 0:01:35]} 39. Nc3 {[%emt 0:00:03]} Rd4 {[%emt 0:00:20]} 40. Ne2 {[%emt 0:00:53]} Rd1+ {[%emt 0:00:35]} 41. Kf2 {[%emt 0:30:14]} b5 {[%emt 0:30:29]} 42. Nc3 {[%emt 0:00:00]} Rd4 {[%emt 0:00:00]} 43. Ke3 {[%emt 0:00:00]} Rc4 {[%emt 0:00:00]} 44. Kd2 {[%emt 0:00:00]} b4 {[%emt 0:00:00]} 45. Nb1 {[%emt 0:00:00]} b3 {[%emt 0:00:00]} 46. Ra3 {[%emt 0:00:00]} Rc2+ {[%emt 0:00:00]} 47. Kd1 {[%emt 0:00:00]} Rbc8 {[%emt 0:00:00]} 48. Nd2 {[%emt 0:00:00]} b2 {[%emt 0:00:00]} 49. Rf1 {[%emt 0:00:00]} Bb5 {[%emt 0:00:00]} 50. Ke1 {[%emt 0:02:23]} 0-1

[Event "44th Chess Olympiad Women 2022"]
[Site "Chennai"]
[Date "2022.07.30"]
[Round "2.49"]
[White "Mazariegos, Silvia Carolina"]
[Black "Marochkina, Nadezhda Valerevna"]
[Result "0-1"]
[ECO "D00"]
[WhiteElo "1851"]
[BlackElo "1687"]
[Annotator "NA COMBH"]
[PlyCount "60"]
[EventDate "2022.07.29"]
[EventType "team-tourn"]
[EventCountry "IND"]
[SourceTitle "playchess.com"]
[Source "ChessBase"]
[SourceQuality "1"]
[WhiteTeam "Guatemala"]
[BlackTeam "Senegal"]
[WhiteTeamCountry "GUA"]
[BlackTeamCountry "SEN"]
[TimeControl "40/5400+30:1800+30"]

1. d4 {[%emt 0:00:06]} d5 {[%emt 0:00:29]} 2. e3 {[%emt 0:00:03]} Nf6 {[%emt 0:00:14]} 3. Bd3 {[%emt 0:00:02]} Nc6 {[%emt 0:01:11]} 4. f4 {[%emt 0:00:13]} Nb4 {[%emt 0:05:46]} 5. Bb5+ {[%emt 0:00:30]} Bd7 {[%emt 0:02:05]} 6. Be2 {[%emt 0:00:40]} Bf5 {[%emt 0:01:59]} 7. Na3 {[%emt 0:00:16]} e6 {[%emt 0:06:57]} 8. c3 {[%emt 0:01:45]} Nc6 {[%emt 0:01:43]} 9. b3 {[%emt 0:05:22]} Ne4 {[%emt 0:07:53]} 10. Kf1 {[%emt 0:14:24]} Nxc3 {[%emt 0:03:59]} 11. Qe1 {[%emt 0:00:11]} Ne4 {[%emt 0:07:37]} 12. Bb5 {[%emt 0:07:56]} a5 {[%emt 0:05:47]} 13. Nc2 {[%emt 0:09:57]} Nd6 {[%emt 0:03:15]} 14. Bxc6+ {[%emt 0:06:50]} bxc6 {[%emt 0:00:09]} 15. Qe2 {[%emt 0:00:10]} Be7 {[%emt 0:07:39]} 16. Nf3 {[%emt 0:02:09]} Bg4 {[%emt 0:05:36]} 17. Bb2 {[%emt 0:03:28]} Qb8 {[%emt 0:04:55]} 18. Rc1 {[%emt 0:03:50]} a4 {[%emt 0:05:26]} 19. Qd3 {[%emt 0:02:31]} axb3 {[%emt 0:02:19]} 20. axb3 {[%emt 0:00:42]} Ra2 {[%emt 0:01:40]} 21. Ba3 {[%emt 0:06:46]} Bf5 {[%emt 0:02:03]} 22. Qc3 {[%emt 0:04:13]} Qb5+ {[%emt 0:01:04]} 23. Kg1 {[%emt 0:00:32]} Bxc2 {[%emt 0:05:34]} 24. Bxd6 {[%emt 0:06:38]} Bxb3 {[%emt 0:07:06]} 25. Bxe7 {[%emt 0:12:07]} Kxe7 {[%emt 0:00:08]} 26. Nd2 {[%emt 0:00:48]} Qe2 {[%emt 0:05:12]} 27. Qxc6 {[%emt 0:00:22]} Qxe3+ {[%emt 0:00:26]} 28. Kf1 {[%emt 0:00:07]} Qd3+ {[%emt 0:02:49]} 29. Kg1 {[%emt 0:00:16]} Qxd4+ {[%emt 0:00:05]} 30. Kf1 {[%emt 0:00:12]} Rxd2 {[%emt 0:00:57]} 0-1

[Event "44th Chess Olympiad Women 2022"]
[Site "Chennai"]
[Date "2022.07.30"]
[Round "2.49"]
[White "Natareno, Elvia"]
[Black "Sy, Mariama"]
[Result "1-0"]
[ECO "D02"]
[WhiteElo "1581"]
[BlackElo "1211"]
[Annotator "NA RC COMBH"]
[PlyCount "49"]
[EventDate "2022.07.29"]
[EventType "team-tourn"]
[EventCountry "IND"]
[SourceTitle "playchess.com"]
[Source "ChessBase"]
[SourceQuality "1"]
[WhiteTeam "Guatemala"]
[BlackTeam "Senegal"]
[WhiteTeamCountry "GUA"]
[BlackTeamCountry "SEN"]
[TimeControl "40/5400+30:1800+30"]

1. d4 {[%emt 0:00:04]} d5 {[%emt 0:00:26]} 2. Nf3 {[%emt 0:00:14]} Nf6 {[%emt 0:00:38]} 3. e3 {[%emt 0:00:31]} Nc6 {[%emt 0:00:30]} 4. b3 {[%emt 0:00:13]} Bg4 {[%emt 0:01:37]} 5. Bb2 {[%emt 0:00:23]} e6 {[%emt 0:01:29]} 6. a3 {[%emt 0:00:11]} Bd6 {[%emt 0:01:20]} 7. Bd3 {[%emt 0:02:43]} O-O {[%emt 0:01:19]} 8. Nbd2 {[%emt 0:02:40]} Re8 {[%emt 0:02:43]} 9. h3 {[%emt 0:00:30]} Bf5 {[%emt 0:01:40]} 10. Bxf5 {[%emt 0:02:50]} exf5 {[%emt 0:00:32]} 11. O-O {[%emt 0:00:35]} f4 {[%emt 0:02:22]} 12. exf4 {[%emt 0:01:58]} Bxf4 {[%emt 0:00:40]} 13. Re1 {[%emt 0:01:44]} b6 {[%emt 0:04:48]} 14. c4 {[%emt 0:01:47]} Ne7 {[%emt 0:02:43]} 15. Ne5 {[%emt 0:02:18]} Bxe5 {[%emt 0:03:51]} 16. dxe5 {[%emt 0:00:13]} Nd7 {[%emt 0:05:18]} 17. Qg4 {[%emt 0:02:21]} Ng6 {[%emt 0:01:44]} 18. e6 {[%emt 0:00:29]} f6 {[%emt 0:04:48]} 19. exd7 {[%emt 0:01:06]} Rxe1+ {[%emt 0:02:41]} 20. Rxe1 {[%emt 0:00:10]} Qf8 {[%emt 0:02:11]} 21. Qe6+ {[%emt 0:01:25]} Qf7 {[%emt 0:02:04]} 22. Qe8+ {[%emt 0:01:05]} Qf8 {[%emt 0:01:02]} 23. Qxa8 {[%emt 0:01:25]} Qxa8 {[%emt 0:00:29]} 24. Re8+ {[%emt 0:00:09]} Kf7 {[%emt 0:02:22]} 25. Rxa8 {[%emt 0:00:29]} 1-0

[Event "44th Chess Olympiad Women 2022"]
[Site "Chennai"]
[Date "2022.07.30"]
[Round "2.49"]
[White "Sy Mame, Binta"]
[Black "Juarez Garcia, Daniela"]
[Result "0-1"]
[ECO "C55"]
[WhiteElo "1256"]
[BlackElo "1725"]
[Annotator "NA RC COMBH"]
[PlyCount "56"]
[EventDate "2022.07.29"]
[EventType "team-tourn"]
[EventCountry "IND"]
[SourceTitle "playchess.com"]
[Source "ChessBase"]
[SourceQuality "1"]
[WhiteTeam "Senegal"]
[BlackTeam "Guatemala"]
[WhiteTeamCountry "SEN"]
[BlackTeamCountry "GUA"]
[TimeControl "40/5400+30:1800+30"]

1. e4 {[%emt 0:00:07]} e5 {[%emt 0:00:21]} 2. Nf3 {[%emt 0:00:16]} Nc6 {[%emt 0:00:09]} 3. Nc3 {[%emt 0:00:56]} Bc5 {[%emt 0:01:02]} 4. Bc4 {[%emt 0:01:39]} Nf6 {[%emt 0:00:41]} 5. Ng5 {[%emt 0:02:14]} O-O {[%emt 0:00:47]} 6. Nd5 {[%emt 0:01:39]} Nxd5 {[%emt 0:04:35]} 7. Bxd5 {[%emt 0:00:36]} Qxg5 {[%emt 0:00:40]} 8. O-O {[%emt 0:01:21]} Qg6 {[%emt 0:01:22]} 9. d3 {[%emt 0:01:58]} d6 {[%emt 0:00:47]} 10. Qf3 {[%emt 0:02:13]} Nd4 {[%emt 0:00:38]} 11. Qg3 {[%emt 0:02:21]} Ne2+ {[%emt 0:00:14]} 12. Kh1 {[%emt 0:01:18]} Nxg3+ {[%emt 0:00:07]} 13. fxg3 {[%emt 0:00:38]} c6 {[%emt 0:00:23]} 14. Bb3 {[%emt 0:00:50]} Be6 {[%emt 0:00:08]} 15. c4 {[%emt 0:02:08]} f5 {[%emt 0:00:46]} 16. Bc2 {[%emt 0:01:29]} fxe4 {[%emt 0:00:16]} 17. Re1 {[%emt 0:01:33]} exd3 {[%emt 0:00:24]} 18. Bb3 {[%emt 0:00:35]} Bb4 {[%emt 0:00:30]} 19. Rd1 {[%emt 0:00:25]} Bg4 {[%emt 0:01:32]} 20. Rg1 {[%emt 0:01:34]} d2 {[%emt 0:00:22]} 21. Bxd2 {[%emt 0:01:24]} Bxd2 {[%emt 0:00:09]} 22. c5+ {[%emt 0:00:39]} d5 {[%emt 0:00:09]} 23. Bd1 {[%emt 0:00:37]} Bxd1 {[%emt 0:00:14]} 24. Rgxd1 {[%emt 0:00:29]} Rf2 {[%emt 0:00:07]} 25. Kg1 {[%emt 0:00:46]} Raf8 {[%emt 0:00:10]} 26. Rf1 {[%emt 0:01:06]} Rxf1+ {[%emt 0:00:11]} 27. Rxf1 {[%emt 0:00:00]} Be3+ {[%emt 0:00:11]} 28. Rf2 {[%emt 0:00:27]} Qb1# {[%emt 0:00:11]} 0-1